[Event "Titled Tuesday Blitz July 25 Early 2023"]
[White "Bendayan Claros, Aaron"]
[Black "Cordova, Emilio"]
[WhiteFideId "3803392"]
[BlackFideId "3801497"]
[WhiteElo "2443"]
[BlackElo "2816"]
[Result "0-1"]
[Round "1"]
[TimeControl "180+2"]
[Date "2023.07.25"]
[WhiteClock "0:00:03"]
[BlackClock "0:00:15"]
[Board "65"]

1. d4 {[%clk 0:03:00]}  Nf6 {[%clk 0:02:40]} 2. Nf3 {[%clk 0:02:58]}  c5 {[%clk 0:02:40]} 3. e3 {[%clk 0:02:57]}  e6 {[%clk 0:02:40]} 4. Bd3 {[%clk 0:02:56]}  b6 {[%clk 0:02:40]} 5. O-O {[%clk 0:02:56]}  Bb7 {[%clk 0:02:41]} 6. c4 {[%clk 0:02:57]}  cxd4 {[%clk 0:02:41]} 7. exd4 {[%clk 0:02:57]}  Be7 {[%clk 0:02:42]} 8. Nc3 {[%clk 0:02:56]}  d5 {[%clk 0:02:42]} 9. cxd5 {[%clk 0:02:56]}  Nxd5 {[%clk 0:02:43]} 10. Ne5 {[%clk 0:02:55]}  O-O {[%clk 0:02:43]} 11. Qh5 {[%clk 0:02:54]}  g6 {[%clk 0:02:41]} 12. Qh3 {[%clk 0:02:50]}  Nc6 {[%clk 0:02:22]} 13. Bh6 {[%clk 0:02:46]}  Nxe5 {[%clk 0:02:21]} 14. dxe5 {[%clk 0:02:12]}  Nxc3 {[%clk 0:02:07]} 15. Bxf8 {[%clk 0:02:09]}  Bxf8 {[%clk 0:02:06]} 16. bxc3 {[%clk 0:02:07]}  Qc7 {[%clk 0:02:06]} 17. Rfe1 {[%clk 0:02:01]}  Qxc3 {[%clk 0:02:02]} 18. Bf1 {[%clk 0:02:01]}  Qxh3 {[%clk 0:01:57]} 19. gxh3 {[%clk 0:02:01]}  Bb4 {[%clk 0:01:30]} 20. Re3 {[%clk 0:01:50]}  Rc8 {[%clk 0:01:27]} 21. Rd1 {[%clk 0:01:21]}  Rc7 {[%clk 0:01:08]} 22. Red3 {[%clk 0:00:49]}  Rc2 {[%clk 0:00:57]} 23. a3 {[%clk 0:00:31]}  Bc5 {[%clk 0:00:56]} 24. R1d2 {[%clk 0:00:31]}  Rxd2 {[%clk 0:00:42]} 25. Rxd2 {[%clk 0:00:32]}  a5 {[%clk 0:00:35]} 26. Rd7 {[%clk 0:00:21]}  Bc6 {[%clk 0:00:32]} 27. Rc7 {[%clk 0:00:20]}  Ba4 {[%clk 0:00:29]} 28. Rb7 {[%clk 0:00:17]}  g5 {[%clk 0:00:26]} 29. Bg2 {[%clk 0:00:15]}  Kg7 {[%clk 0:00:25]} 30. Be4 {[%clk 0:00:14]}  h6 {[%clk 0:00:23]} 31. Kg2 {[%clk 0:00:14]}  Bb3 {[%clk 0:00:17]} 32. f3 {[%clk 0:00:14]}  a4 {[%clk 0:00:17]} 33. Kg3 {[%clk 0:00:12]}  Bxa3 {[%clk 0:00:17]} 34. Rxb6 {[%clk 0:00:11]}  Bb2 {[%clk 0:00:17]} 35. Bb1 {[%clk 0:00:08]}  Bxe5+ {[%clk 0:00:17]} 36. Kg2 {[%clk 0:00:08]}  Bd5 {[%clk 0:00:16]} 37. Ra6 {[%clk 0:00:07]}  Bb3 {[%clk 0:00:16]} 38. Be4 {[%clk 0:00:05]}  Bb2 {[%clk 0:00:15]} 39. Bb1 {[%clk 0:00:04]}  a3 {[%clk 0:00:15]} 40. Ra8 {[%clk 0:00:03]}  Bd5 {[%clk 0:00:15]} 41. Ra6 {[%clk 0:00:03]}  h5 {[%clk 0:00:15]} 42. Ra7 {[%clk 0:00:03]}  h4 {[%clk 0:00:15]} 43. Kf2 {[%clk 0:00:03]}  Bd4+ {[%clk 0:00:14]} 44. Kg2 {[%clk 0:00:03]}  Bxa7 {[%clk 0:00:15]} 0-1


[Site "https://www.chess.com"]

[Event "Titled Tuesday Blitz July 25 Early 2023"]
[White "Vivas Zamora, Fabian Ernesto"]
[Black "Kushko, Dmitriy"]
[WhiteFideId "3902480"]
[BlackFideId "14162261"]
[WhiteElo "2440"]
[BlackElo "2815"]
[Result "0-1"]
[Round "1"]
[TimeControl "180+2"]
[Date "2023.07.25"]
[WhiteClock "0:00:05"]
[BlackClock "0:00:04"]
[Board "67"]

1. e4 {[%clk 0:03:00]}  c6 {[%clk 0:02:59]} 2. Nf3 {[%clk 0:03:00]}  d5 {[%clk 0:03:00]} 3. Nc3 {[%clk 0:03:01]}  dxe4 {[%clk 0:02:59]} 4. Nxe4 {[%clk 0:03:02]}  Nf6 {[%clk 0:03:00]} 5. Qe2 {[%clk 0:03:02]}  Nxe4 {[%clk 0:03:00]} 6. Qxe4 {[%clk 0:03:03]}  Qd5 {[%clk 0:03:00]} 7. Qh4 {[%clk 0:03:02]}  Qe6+ {[%clk 0:03:00]} 8. Be2 {[%clk 0:03:02]}  Qg4 {[%clk 0:03:01]} 9. Qg3 {[%clk 0:03:03]}  Qxg3 {[%clk 0:03:01]} 10. hxg3 {[%clk 0:03:04]}  Bf5 {[%clk 0:03:01]} 11. c3 {[%clk 0:02:54]}  h6 {[%clk 0:03:00]} 12. d4 {[%clk 0:02:50]}  e6 {[%clk 0:02:59]} 13. Ne5 {[%clk 0:02:49]}  Nd7 {[%clk 0:02:55]} 14. g4 {[%clk 0:02:43]}  Be4 {[%clk 0:02:35]} 15. f3 {[%clk 0:02:29]}  Bh7 {[%clk 0:02:35]} 16. Be3 {[%clk 0:02:14]}  Bd6 {[%clk 0:02:29]} 17. Nxd7 {[%clk 0:02:02]}  Kxd7 {[%clk 0:02:29]} 18. Kf2 {[%clk 0:01:50]}  a5 {[%clk 0:02:25]} 19. Rad1 {[%clk 0:01:39]}  b5 {[%clk 0:02:20]} 20. g5 {[%clk 0:01:18]}  hxg5 {[%clk 0:02:16]} 21. Bxg5 {[%clk 0:01:19]}  Bc2 {[%clk 0:02:09]} 22. Rc1 {[%clk 0:01:16]}  Bg6 {[%clk 0:02:07]} 23. Ke3 {[%clk 0:01:08]}  a4 {[%clk 0:02:07]} 24. Bf4 {[%clk 0:00:52]}  a3 {[%clk 0:01:28]} 25. b3 {[%clk 0:00:48]}  Rab8 {[%clk 0:01:21]} 26. Bxd6 {[%clk 0:00:46]}  Kxd6 {[%clk 0:01:21]} 27. f4 {[%clk 0:00:34]}  f6 {[%clk 0:01:08]} 28. Bf3 {[%clk 0:00:18]}  c5 {[%clk 0:00:41]} 29. dxc5+ {[%clk 0:00:16]}  Kxc5 {[%clk 0:00:41]} 30. b4+ {[%clk 0:00:11]}  Kb6 {[%clk 0:00:41]} 31. Rxh8 {[%clk 0:00:06]}  Rxh8 {[%clk 0:00:41]} 32. c4 {[%clk 0:00:07]}  bxc4 {[%clk 0:00:15]} 33. Rxc4 {[%clk 0:00:08]}  Rd8 {[%clk 0:00:15]} 34. Rc3 {[%clk 0:00:08]}  Kb5 {[%clk 0:00:08]} 35. Rxa3 {[%clk 0:00:07]}  Kxb4 {[%clk 0:00:09]} 36. Rb3+ {[%clk 0:00:07]}  Kc5 {[%clk 0:00:09]} 37. Rc3+ {[%clk 0:00:06]}  Kd6 {[%clk 0:00:09]} 38. Be4 {[%clk 0:00:05]}  Bxe4 {[%clk 0:00:07]} 39. Kxe4 {[%clk 0:00:06]}  Ra8 {[%clk 0:00:07]} 40. a3 {[%clk 0:00:05]}  Ra4+ {[%clk 0:00:07]} 41. Ke3 {[%clk 0:00:06]}  e5 {[%clk 0:00:06]} 42. fxe5+ {[%clk 0:00:05]}  Kxe5 {[%clk 0:00:06]} 43. Kd3 {[%clk 0:00:05]}  Rg4 {[%clk 0:00:04]} 0-1


[Site "https://www.chess.com"]

[Event "Titled Tuesday Blitz July 25 Early 2023"]
[White "Herman, Daniel"]
[Black "Nenezic, Marko"]
[WhiteFideId "30935008"]
[BlackFideId "912123"]
[WhiteElo "2434"]
[BlackElo "2801"]
[Result "1/2-1/2"]
[Round "1"]
[TimeControl "180+2"]
[Date "2023.07.25"]
[WhiteClock "0:00:12"]
[BlackClock "0:00:17"]
[Board "71"]

1. c4 {[%clk 0:02:59]}  Nf6 {[%clk 0:02:58]} 2. Nc3 {[%clk 0:02:59]}  g6 {[%clk 0:02:58]} 3. e4 {[%clk 0:02:59]}  d6 {[%clk 0:02:59]} 4. d4 {[%clk 0:02:59]}  Bg7 {[%clk 0:03:00]} 5. Nf3 {[%clk 0:02:59]}  O-O {[%clk 0:03:01]} 6. h3 {[%clk 0:03:00]}  e5 {[%clk 0:03:00]} 7. d5 {[%clk 0:03:00]}  a5 {[%clk 0:03:00]} 8. Be3 {[%clk 0:02:55]}  Na6 {[%clk 0:02:59]} 9. Bd3 {[%clk 0:02:50]}  Nh5 {[%clk 0:02:55]} 10. g3 {[%clk 0:02:45]}  Qe8 {[%clk 0:02:52]} 11. Qd2 {[%clk 0:02:19]}  c6 {[%clk 0:02:39]} 12. O-O-O {[%clk 0:02:08]}  Nb4 {[%clk 0:02:32]} 13. Be2 {[%clk 0:01:50]}  cxd5 {[%clk 0:02:30]} 14. Nxd5 {[%clk 0:01:34]}  Nxd5 {[%clk 0:02:02]} 15. Qxd5 {[%clk 0:01:23]}  Nf6 {[%clk 0:01:34]} 16. Qxd6 {[%clk 0:01:06]}  Nxe4 {[%clk 0:01:33]} 17. Qc7 {[%clk 0:01:06]}  Qa4 {[%clk 0:01:19]} 18. Kb1 {[%clk 0:00:58]}  Bf5 {[%clk 0:01:20]} 19. Bd3 {[%clk 0:00:52]}  Rfc8 {[%clk 0:01:20]} 20. Qe7 {[%clk 0:00:39]}  Re8 {[%clk 0:01:15]} 21. Qh4 {[%clk 0:00:32]}  Nc3+ {[%clk 0:00:59]} 22. bxc3 {[%clk 0:00:13]}  Be4 {[%clk 0:00:39]} 23. Qxe4 {[%clk 0:00:11]}  Qa3 {[%clk 0:00:26]} 24. Bc2 {[%clk 0:00:09]}  f5 {[%clk 0:00:21]} 25. Qd5+ {[%clk 0:00:09]}  Kh8 {[%clk 0:00:22]} 26. Ng5 {[%clk 0:00:10]}  Re7 {[%clk 0:00:20]} 27. Nf7+ {[%clk 0:00:10]}  Rxf7 {[%clk 0:00:20]} 28. Qxf7 {[%clk 0:00:10]}  Qxc3 {[%clk 0:00:20]} 29. Qd5 {[%clk 0:00:10]}  a4 {[%clk 0:00:19]} 30. Qb5 {[%clk 0:00:10]}  e4 {[%clk 0:00:18]} 31. Bd4 {[%clk 0:00:09]}  Bxd4 {[%clk 0:00:18]} 32. Rxd4 {[%clk 0:00:09]}  Qxd4 {[%clk 0:00:19]} 33. Rd1 {[%clk 0:00:10]}  Qc3 {[%clk 0:00:19]} 34. Qb2 {[%clk 0:00:10]}  Qxb2+ {[%clk 0:00:18]} 35. Kxb2 {[%clk 0:00:11]}  Rc8 {[%clk 0:00:17]} 36. Bxa4 {[%clk 0:00:11]}  Rxc4 {[%clk 0:00:18]} 37. Rd7 {[%clk 0:00:09]}  Rxa4 {[%clk 0:00:17]} 38. Rxb7 {[%clk 0:00:09]}  Kg8 {[%clk 0:00:16]} 39. Kb3 {[%clk 0:00:10]}  Ra6 {[%clk 0:00:15]} 40. a4 {[%clk 0:00:10]}  g5 {[%clk 0:00:14]} 41. Kb4 {[%clk 0:00:10]}  Re6 {[%clk 0:00:14]} 42. a5 {[%clk 0:00:09]}  f4 {[%clk 0:00:14]} 43. gxf4 {[%clk 0:00:09]}  gxf4 {[%clk 0:00:15]} 44. Rd7 {[%clk 0:00:10]}  e3 {[%clk 0:00:15]} 45. fxe3 {[%clk 0:00:10]}  fxe3 {[%clk 0:00:15]} 46. Rd1 {[%clk 0:00:11]}  e2 {[%clk 0:00:16]} 47. Re1 {[%clk 0:00:11]}  Kg7 {[%clk 0:00:16]} 48. Kb5 {[%clk 0:00:11]}  Re5+ {[%clk 0:00:17]} 49. Kb6 {[%clk 0:00:11]}  Re6+ {[%clk 0:00:17]} 50. Kb7 {[%clk 0:00:11]}  Re7+ {[%clk 0:00:17]} 51. Kc6 {[%clk 0:00:11]}  Re6+ {[%clk 0:00:16]} 52. Kb7 {[%clk 0:00:12]}  Re7+ {[%clk 0:00:16]} 53. Kb8 {[%clk 0:00:12]}  Re8+ {[%clk 0:00:16]} 54. Kb7 {[%clk 0:00:12]}  Re7+ {[%clk 0:00:17]} 1/2-1/2


[Site "https://www.chess.com"]

[Event "Titled Tuesday Blitz July 25 Early 2023"]
[White "Ashraf, Artin"]
[Black "Pourkashiyan, Atousa"]
[WhiteFideId "22514805"]
[BlackFideId "12502014"]
[WhiteElo "2797"]
[BlackElo "2429"]
[Result "1-0"]
[Round "1"]
[TimeControl "180+2"]
[Date "2023.07.25"]
[WhiteClock "0:00:03"]
[BlackClock "0:00:01"]
[Board "72"]

1. Nf3 {[%clk 0:02:55]}  Nf6 {[%clk 0:02:15]} 2. d4 {[%clk 0:02:53]}  d5 {[%clk 0:02:14]} 3. Bf4 {[%clk 0:02:52]}  e6 {[%clk 0:02:14]} 4. e3 {[%clk 0:02:49]}  c5 {[%clk 0:02:14]} 5. Nbd2 {[%clk 0:02:49]}  Nc6 {[%clk 0:02:14]} 6. c3 {[%clk 0:02:49]}  Bd6 {[%clk 0:02:15]} 7. dxc5 {[%clk 0:02:45]}  Bxc5 {[%clk 0:02:13]} 8. Bd3 {[%clk 0:02:42]}  Bd6 {[%clk 0:02:13]} 9. Bxd6 {[%clk 0:02:35]}  Qxd6 {[%clk 0:02:13]} 10. O-O {[%clk 0:02:36]}  O-O {[%clk 0:02:13]} 11. e4 {[%clk 0:02:33]}  dxe4 {[%clk 0:02:12]} 12. Nxe4 {[%clk 0:02:32]}  Nxe4 {[%clk 0:02:13]} 13. Bxe4 {[%clk 0:02:33]}  Qxd1 {[%clk 0:02:12]} 14. Raxd1 {[%clk 0:02:25]}  f5 {[%clk 0:02:07]} 15. Bxc6 {[%clk 0:02:19]}  bxc6 {[%clk 0:02:08]} 16. Rd6 {[%clk 0:02:20]}  Rb8 {[%clk 0:02:02]} 17. b3 {[%clk 0:02:17]}  c5 {[%clk 0:01:59]} 18. Rc6 {[%clk 0:02:10]}  Bb7 {[%clk 0:01:57]} 19. Rxc5 {[%clk 0:02:10]}  Bxf3 {[%clk 0:01:56]} 20. gxf3 {[%clk 0:02:11]}  Rfd8 {[%clk 0:01:56]} 21. Re1 {[%clk 0:02:03]}  Rb6 {[%clk 0:01:50]} 22. b4 {[%clk 0:01:59]}  Rd2 {[%clk 0:01:47]} 23. a4 {[%clk 0:01:59]}  a6 {[%clk 0:01:35]} 24. Rc7 {[%clk 0:01:45]}  Rbd6 {[%clk 0:01:32]} 25. Re5 {[%clk 0:01:42]}  Ra2 {[%clk 0:01:26]} 26. a5 {[%clk 0:01:18]}  h6 {[%clk 0:01:26]} 27. Re1 {[%clk 0:01:07]}  Rdd2 {[%clk 0:01:20]} 28. Rf1 {[%clk 0:01:07]}  Rd3 {[%clk 0:01:20]} 29. Rc6 {[%clk 0:01:07]}  Rxf3 {[%clk 0:01:00]} 30. Rxa6 {[%clk 0:01:02]}  Rxc3 {[%clk 0:01:00]} 31. Rxe6 {[%clk 0:01:02]}  Rc4 {[%clk 0:00:55]} 32. Rb6 {[%clk 0:00:57]}  Rg4+ {[%clk 0:00:40]} 33. Kh1 {[%clk 0:00:56]}  Ra4 {[%clk 0:00:27]} 34. a6 {[%clk 0:00:50]}  Rgxb4 {[%clk 0:00:22]} 35. Rxb4 {[%clk 0:00:50]}  Rxb4 {[%clk 0:00:23]} 36. Ra1 {[%clk 0:00:50]}  Rb8 {[%clk 0:00:23]} 37. Kg2 {[%clk 0:00:47]}  Ra8 {[%clk 0:00:24]} 38. a7 {[%clk 0:00:45]}  Kf7 {[%clk 0:00:24]} 39. Kf3 {[%clk 0:00:45]}  Ke6 {[%clk 0:00:25]} 40. h4 {[%clk 0:00:37]}  g5 {[%clk 0:00:24]} 41. h5 {[%clk 0:00:37]}  Kd5 {[%clk 0:00:20]} 42. Ke3 {[%clk 0:00:33]}  Ke5 {[%clk 0:00:18]} 43. Ra5+ {[%clk 0:00:31]}  Kd6 {[%clk 0:00:18]} 44. Kd4 {[%clk 0:00:31]}  f4 {[%clk 0:00:17]} 45. Ke4 {[%clk 0:00:28]}  Kc6 {[%clk 0:00:15]} 46. Kf5 {[%clk 0:00:26]}  Kb6 {[%clk 0:00:13]} 47. Ra1 {[%clk 0:00:21]}  Rxa7 {[%clk 0:00:13]} 48. Rb1+ {[%clk 0:00:18]}  Kc5 {[%clk 0:00:12]} 49. Rd1 {[%clk 0:00:17]}  Ra6 {[%clk 0:00:12]} 50. f3 {[%clk 0:00:17]}  Kc4 {[%clk 0:00:13]} 51. Rd8 {[%clk 0:00:17]}  Kc3 {[%clk 0:00:13]} 52. Rg8 {[%clk 0:00:17]}  Kd3 {[%clk 0:00:12]} 53. Rg6 {[%clk 0:00:17]}  Ra5+ {[%clk 0:00:13]} 54. Kg4 {[%clk 0:00:17]}  Ke3 {[%clk 0:00:13]} 55. Rxh6 {[%clk 0:00:15]}  Ra1 {[%clk 0:00:13]} 56. Re6+ {[%clk 0:00:09]}  Kf2 {[%clk 0:00:13]} 57. h6 {[%clk 0:00:09]}  Rg1+ {[%clk 0:00:13]} 58. Kf5 {[%clk 0:00:09]}  Kxf3 {[%clk 0:00:13]} 59. Ra6 {[%clk 0:00:09]}  g4 {[%clk 0:00:08]} 60. Ra3+ {[%clk 0:00:08]}  Ke2 {[%clk 0:00:07]} 61. Kxf4 {[%clk 0:00:08]}  Rh1 {[%clk 0:00:07]} 62. Ra6 {[%clk 0:00:06]}  Rg1 {[%clk 0:00:06]} 63. Ra2+ {[%clk 0:00:04]}  Kd3 {[%clk 0:00:05]} 64. Ra5 {[%clk 0:00:03]}  Rh1 {[%clk 0:00:05]} 65. Kg5 {[%clk 0:00:03]}  g3 {[%clk 0:00:05]} 66. Ra3+ {[%clk 0:00:03]}  Ke4 {[%clk 0:00:05]} 67. Rxg3 {[%clk 0:00:04]}  Ke5 {[%clk 0:00:05]} 68. Kg6 {[%clk 0:00:04]}  Ra1 {[%clk 0:00:04]} 69. h7 {[%clk 0:00:05]}  Ra8 {[%clk 0:00:03]} 70. Kh6 {[%clk 0:00:05]}  Kf6 {[%clk 0:00:02]} 71. Rg8 {[%clk 0:00:04]}  Ra6 {[%clk 0:00:01]} 72. h8=Q+ {[%clk 0:00:04]}  Kf7+ {[%clk 0:00:01]} 73. Kh5 {[%clk 0:00:03]}  Ra5+ {[%clk 0:00:01]} 74. Rg5 {[%clk 0:00:03]} 1-0


[Site "https://www.chess.com"]

[Event "Titled Tuesday Blitz July 25 Early 2023"]
[White "Fiorito, Joaquin"]
[Black "Carrasco Miranda, Andres"]
[WhiteFideId "180173"]
[BlackFideId "3405990"]
[WhiteElo "2793"]
[BlackElo "2429"]
[Result "1-0"]
[Round "1"]
[TimeControl "180+2"]
[Date "2023.07.25"]
[WhiteClock "0:00:05"]
[BlackClock "0:00:01"]
[Board "74"]

1. d4 {[%clk 0:03:00]}  Nf6 {[%clk 0:02:52]} 2. c4 {[%clk 0:03:00]}  g6 {[%clk 0:02:47]} 3. Nc3 {[%clk 0:03:00]}  d5 {[%clk 0:02:45]} 4. Nf3 {[%clk 0:03:00]}  Bg7 {[%clk 0:02:44]} 5. h4 {[%clk 0:03:00]}  dxc4 {[%clk 0:02:40]} 6. e4 {[%clk 0:03:00]}  c5 {[%clk 0:02:40]} 7. d5 {[%clk 0:03:00]}  b5 {[%clk 0:02:41]} 8. h5 {[%clk 0:02:52]}  O-O {[%clk 0:02:39]} 9. hxg6 {[%clk 0:02:51]}  fxg6 {[%clk 0:02:40]} 10. e5 {[%clk 0:02:30]}  Ng4 {[%clk 0:02:37]} 11. Nxb5 {[%clk 0:02:23]}  Qa5+ {[%clk 0:02:33]} 12. Nc3 {[%clk 0:02:22]}  Nxe5 {[%clk 0:02:29]} 13. Nxe5 {[%clk 0:02:03]}  Bxe5 {[%clk 0:02:30]} 14. Bd2 {[%clk 0:02:03]}  Bd4 {[%clk 0:02:28]} 15. Ne4 {[%clk 0:01:46]}  Qd8 {[%clk 0:02:04]} 16. Bxc4 {[%clk 0:01:45]}  Ba6 {[%clk 0:02:04]} 17. Qb3 {[%clk 0:01:35]}  Bxc4 {[%clk 0:01:53]} 18. Qxc4 {[%clk 0:01:36]}  Nd7 {[%clk 0:00:44]} 19. d6+ {[%clk 0:01:23]}  Kg7 {[%clk 0:00:39]} 20. Bh6+ {[%clk 0:01:23]}  Kh8 {[%clk 0:00:36]} 21. Bxf8 {[%clk 0:01:22]}  Qxf8 {[%clk 0:00:37]} 22. Qe2 {[%clk 0:00:32]}  exd6 {[%clk 0:00:34]} 23. O-O-O {[%clk 0:00:25]}  Re8 {[%clk 0:00:31]} 24. Qc2 {[%clk 0:00:19]}  Qf4+ {[%clk 0:00:28]} 25. Nd2 {[%clk 0:00:20]}  Rb8 {[%clk 0:00:25]} 26. b3 {[%clk 0:00:19]}  Ne5 {[%clk 0:00:25]} 27. g3 {[%clk 0:00:16]}  Qxf2 {[%clk 0:00:12]} 28. Ne4 {[%clk 0:00:17]}  Qf5 {[%clk 0:00:07]} 29. Nxd6 {[%clk 0:00:16]}  Qd7 {[%clk 0:00:04]} 30. Ne4 {[%clk 0:00:13]}  Qe7 {[%clk 0:00:03]} 31. Qd2 {[%clk 0:00:11]}  Nc4 {[%clk 0:00:02]} 32. Qg2 {[%clk 0:00:04]}  Ne3 {[%clk 0:00:02]} 33. Qf3 {[%clk 0:00:04]}  Nxd1 {[%clk 0:00:01]} 34. Rxd1 {[%clk 0:00:05]}  Qg7 {[%clk 0:00:01]} 35. Ng5 {[%clk 0:00:04]}  c4 {[%clk 0:00:01]} 36. Nf7+ {[%clk 0:00:04]}  Kg8 {[%clk 0:00:01]} 37. Rf1 {[%clk 0:00:03]}  Bb2+ {[%clk 0:00:01]} 38. Kb1 {[%clk 0:00:04]}  cxb3 {[%clk 0:00:02]} 39. axb3 {[%clk 0:00:04]}  Bf6 {[%clk 0:00:02]} 40. Qd5 {[%clk 0:00:05]}  Qxf7 {[%clk 0:00:01]} 41. Qd6 {[%clk 0:00:05]} 1-0


[Site "https://www.chess.com"]

[Event "Titled Tuesday Blitz July 25 Early 2023"]
[White "Tomaszewski, Kacper"]
[Black "Kosteniuk, Alexandra"]
[WhiteFideId "1127373"]
[BlackFideId "4128125"]
[WhiteElo "2429"]
[BlackElo "2788"]
[Result "1/2-1/2"]
[Round "1"]
[TimeControl "180+2"]
[Date "2023.07.25"]
[WhiteClock "0:00:05"]
[BlackClock "0:00:09"]
[Board "75"]

1. d4 {[%clk 0:02:58]}  f5 {[%clk 0:02:59]} 2. e4 {[%clk 0:02:54]}  fxe4 {[%clk 0:02:58]} 3. Nc3 {[%clk 0:02:54]}  Nf6 {[%clk 0:02:58]} 4. Bg5 {[%clk 0:02:55]}  g6 {[%clk 0:02:54]} 5. h4 {[%clk 0:02:47]}  d5 {[%clk 0:02:52]} 6. h5 {[%clk 0:02:45]}  Bg4 {[%clk 0:02:48]} 7. Be2 {[%clk 0:02:45]}  Bxe2 {[%clk 0:02:35]} 8. Ngxe2 {[%clk 0:02:45]}  Rg8 {[%clk 0:02:32]} 9. Nf4 {[%clk 0:02:43]}  Qd6 {[%clk 0:02:18]} 10. hxg6 {[%clk 0:02:34]}  hxg6 {[%clk 0:02:15]} 11. Bxf6 {[%clk 0:02:22]}  Qxf4 {[%clk 0:01:51]} 12. Be5 {[%clk 0:02:12]}  Qf7 {[%clk 0:01:50]} 13. Bxc7 {[%clk 0:01:50]}  Nc6 {[%clk 0:01:40]} 14. Bg3 {[%clk 0:01:30]}  e6 {[%clk 0:01:37]} 15. Nb5 {[%clk 0:01:28]}  O-O-O {[%clk 0:01:31]} 16. Qg4 {[%clk 0:01:09]}  a6 {[%clk 0:01:13]} 17. Nc7 {[%clk 0:01:01]}  Qf5 {[%clk 0:01:02]} 18. Qxf5 {[%clk 0:00:54]}  exf5 {[%clk 0:01:03]} 19. Ne6 {[%clk 0:00:43]}  Re8 {[%clk 0:01:01]} 20. Nxf8 {[%clk 0:00:41]}  Rgxf8 {[%clk 0:00:49]} 21. O-O-O {[%clk 0:00:24]}  f4 {[%clk 0:00:49]} 22. Bh4 {[%clk 0:00:24]}  Rf5 {[%clk 0:00:48]} 23. g4 {[%clk 0:00:22]}  Rf7 {[%clk 0:00:43]} 24. Bg5 {[%clk 0:00:19]}  e3 {[%clk 0:00:40]} 25. fxe3 {[%clk 0:00:18]}  fxe3 {[%clk 0:00:41]} 26. Rhe1 {[%clk 0:00:18]}  e2 {[%clk 0:00:40]} 27. Rd2 {[%clk 0:00:16]}  Rf1 {[%clk 0:00:40]} 28. Bh4 {[%clk 0:00:14]}  Rxe1+ {[%clk 0:00:33]} 29. Bxe1 {[%clk 0:00:15]}  Re4 {[%clk 0:00:33]} 30. c3 {[%clk 0:00:15]}  Nd8 {[%clk 0:00:33]} 31. Rd3 {[%clk 0:00:05]}  Ne6 {[%clk 0:00:32]} 32. Rf3 {[%clk 0:00:04]}  Rxg4 {[%clk 0:00:23]} 33. Kd2 {[%clk 0:00:04]}  Re4 {[%clk 0:00:21]} 34. Bg3 {[%clk 0:00:04]}  g5 {[%clk 0:00:18]} 35. Re3 {[%clk 0:00:04]}  Rxe3 {[%clk 0:00:17]} 36. Kxe3 {[%clk 0:00:05]}  Kd7 {[%clk 0:00:16]} 37. Kxe2 {[%clk 0:00:05]}  Kc6 {[%clk 0:00:15]} 38. Kd3 {[%clk 0:00:05]}  b5 {[%clk 0:00:15]} 39. b3 {[%clk 0:00:05]}  Ng7 {[%clk 0:00:15]} 40. c4 {[%clk 0:00:05]}  Nf5 {[%clk 0:00:15]} 41. Be5 {[%clk 0:00:04]}  bxc4+ {[%clk 0:00:15]} 42. bxc4 {[%clk 0:00:04]}  g4 {[%clk 0:00:16]} 43. cxd5+ {[%clk 0:00:03]}  Kxd5 {[%clk 0:00:16]} 44. Kc3 {[%clk 0:00:03]}  g3 {[%clk 0:00:16]} 45. Bxg3 {[%clk 0:00:03]}  Nxg3 {[%clk 0:00:16]} 46. Kb4 {[%clk 0:00:04]}  Kc6 {[%clk 0:00:15]} 47. d5+ {[%clk 0:00:04]}  Kb6 {[%clk 0:00:10]} 48. d6 {[%clk 0:00:04]}  Ne4 {[%clk 0:00:08]} 49. d7 {[%clk 0:00:04]}  Kc7 {[%clk 0:00:09]} 50. Ka5 {[%clk 0:00:04]}  Nc5 {[%clk 0:00:09]} 51. d8=Q+ {[%clk 0:00:03]}  Kxd8 {[%clk 0:00:09]} 52. Kb6 {[%clk 0:00:04]}  Nd3 {[%clk 0:00:08]} 53. Kxa6 {[%clk 0:00:04]}  Nb4+ {[%clk 0:00:08]} 54. Kb5 {[%clk 0:00:05]}  Nxa2 {[%clk 0:00:09]} 1/2-1/2


[Site "https://www.chess.com"]